bitfinex/quotes_SOLUSD_20230111
["timestamp","ask_amount","ask_price","bid_price","bid_amount"]
[1673462131440,17.0,15.674,15.666,20.0]
[1673462131641,17.0,15.674,15.665,67.89]
[1673462131852,17.0,15.674,15.665,20.0]
[1673462132910,20.0,15.677,15.665,20.0]
[1673462133123,20.0,15.678,15.667,20.0]
[1673462133331,20.0,15.678,15.666,47.88]
[1673462133525,36.87496728,15.677,15.665,67.89]
[1673462133740,20.0,15.676,15.665,47.89]
[1673462133959,39.14496728,15.676,15.664,112.0199]
[1673462134280,19.14496728,15.675,15.664,112.0199]
[1673462134592,36.14496728,15.675,15.665,47.89]
[1673462135327,18.48,15.67,15.665,47.89]
[1673462135538,17.0,15.669,15.664,112.0199]
[1673462135949,0.96,15.668,15.665,20.0]
[1673462136162,18.48,15.67,15.665,20.0]
[1673462137092,20.0,15.676,15.665,20.0]
[1673462137303,20.0,15.676,15.665,67.89]
[1673462137513,20.0,15.678,15.665,67.89]
[1673462137723,20.0,15.679,15.665,67.89]
[1673462138988,92.29,15.69,15.666,37.0]
[1673462139198,92.29,15.69,15.667,67.88]
[1673462139199,37.86,15.689,15.667,67.88]
[1673462139400,20.0,15.689,15.668,38.92]
[1673462139611,20.0,15.689,15.669,47.87]
[1673462139825,20.0,15.689,15.67,1.92]
[1673462140043,20.0,15.689,15.672,20.0]
[1673462140250,92.29,15.69,15.673,47.86]
[1673462140466,92.29,15.69,15.674,17.0]
[1673462140690,111.43496728,15.69,15.675,47.86]
[1673462141228,111.43496728,15.69,15.677,20.0]
[1673462141421,18.65,15.69,15.678,64.85]
[1673462141634,20.0,15.689,15.678,64.85]
[1673462141825,20.0,15.689,15.678,47.85]
[1673462142364,19.14496728,15.688,15.678,47.85]
[1673462142557,20.96,15.687,15.678,47.85]
[1673462142772,0.96,15.687,15.678,47.85]
[1673462143004,0.96,15.687,15.679,20.0]
[1673462143211,0.96,15.686,15.68,47.84]
[1673462143529,20.0,15.689,15.681,20.0]
[1673462143734,20.0,15.689,15.68,47.84]
[1673462144052,19.14496728,15.688,15.68,47.84]
[1673462144260,19.14496728,15.688,15.679,47.84]
[1673462144472,20.0,15.687,15.679,47.84]
[1673462144788,20.0,15.687,15.68,20.0]
[1673462145191,19.14496728,15.688,15.68,20.0]
[1673462145404,20.0,15.687,15.68,20.0]
[1673462145611,20.0,15.689,15.68,20.0]
[1673462145831,36.14496728,15.688,15.679,47.84]
[1673462146149,20.0,15.687,15.678,111.1851]
[1673462146360,17.0,15.686,15.678,111.1851]
[1673462146570,17.0,15.686,15.679,20.0]
[1673462147093,20.0,15.704,15.679,20.0]
[1673462147301,18.46,15.69,15.681,20.0]
[1673462147623,18.46,15.69,15.682,47.83]
[1673462147814,18.45,15.69,15.682,47.83]
[1673462148026,18.45,15.69,15.683,20.0]
[1673462148239,18.45,15.69,15.684,47.83]
[1673462148664,18.45,15.69,15.685,20.0]
[1673462148894,92.58,15.7,15.685,20.0]
[1673462149098,20.0,15.699,15.685,129.7846]
[1673462149301,39.14496728,15.699,15.685,129.7846]
[1673462149510,20.0,15.699,15.685,129.7846]
[1673462149825,37.10496728,15.698,15.685,129.7846]
[1673462150041,20.0,15.697,15.685,129.7846]
[1673462150249,17.0,15.696,15.685,129.7846]
[1673462150466,36.14496728,15.696,15.685,129.7846]
[1673462150677,19.14496728,15.695,15.685,129.7846]
[1673462150900,17.0,15.694,15.685,129.7846]
[1673462151116,20.0,15.693,15.685,20.0]
[1673462151825,17.0,15.692,15.685,20.0]
[1673462152250,20.0,15.691,15.685,20.0]
[1673462153303,92.47,15.7,15.685,20.0]
[1673462153627,92.47,15.7,15.686,161.0121]
[1673462153830,92.46,15.7,15.687,17.0]
[1673462154044,92.46,15.7,15.688,67.82]
[1673462154265,92.46,15.7,15.688,185.6886]
[1673462154455,111.60496728,15.7,15.688,137.8686]
[1673462155007,17.0,15.699,15.688,137.8686]
[1673462155733,20.96,15.698,15.688,137.8686]
[1673462155942,17.0,15.697,15.688,137.8686]
[1673462156364,0.96,15.696,15.688,137.8686]
[1673462159193,20.0,15.698,15.688,185.6886]
[1673462159402,20.0,15.699,15.688,185.6886]
[1673462160455,17.96,15.698,15.688,185.6886]
[1673462160676,20.0,15.697,15.688,185.6886]
[1673462160888,17.96,15.696,15.688,185.6886]
[1673462161098,17.96,15.696,15.688,137.8686]
[1673462161513,17.96,15.696,15.688,117.8686]
[1673462162348,17.96,15.696,15.689,20.0]
[1673462162560,37.10496728,15.696,15.689,20.0]
[1673462162985,17.96,15.696,15.689,20.0]
[1673462163397,17.96,15.696,15.66,73.88]
[1673462163610,18.45,15.69,15.682,47.84]
[1673462163815,37.0,15.689,15.681,67.84]
[1673462164238,20.0,15.689,15.681,67.84]
[1673462164447,20.0,15.689,15.682,20.0]
[1673462164657,0.96,15.688,15.683,67.83]
[1673462164889,3.773,15.699,15.683,67.83]
[1673462165078,20.0,15.699,15.683,67.83]
[1673462165831,20.0,15.699,15.685,20.0]
[1673462166045,20.0,15.699,15.686,47.82]
[1673462166360,17.96,15.698,15.686,47.82]
[1673462166550,20.0,15.697,15.687,20.0]
[1673462166761,0.96,15.696,15.688,47.82]
[1673462167393,0.96,15.696,15.689,20.0]
[1673462167809,20.0,15.699,15.689,20.0]
[1673462168342,20.0,15.699,15.69,47.81]
[1673462168548,20.0,15.699,15.691,20.0]
[1673462168877,20.0,15.699,15.692,47.8]
[1673462169311,17.96,15.698,15.692,47.8]
[1673462169502,20.0,15.697,15.692,47.8]
[1673462169828,20.0,15.699,15.693,20.0]
[1673462171825,74.16,15.71,15.693,20.0]
[1673462172026,92.47,15.71,15.694,155.8426]
[1673462172236,92.46,15.71,15.695,20.0]
[1673462172458,92.46,15.71,15.696,47.79]
[1673462172784,92.46,15.71,15.697,20.0]
[1673462173093,20.0,15.709,15.698,47.79]
[1673462173709,20.0,15.709,15.7,20.0]
[1673462174024,20.0,15.709,15.702,20.0]
[1673462174240,20.0,15.709,15.703,47.77]
[1673462174878,17.96,15.708,15.702,20.0]
[1673462175087,20.0,15.707,15.702,20.0]
[1673462175615,0.96,15.706,15.702,20.0]
[1673462175831,20.0,15.707,15.702,20.0]
[1673462176138,0.96,15.706,15.7,20.0]
[1673462176353,0.96,15.705,15.7,20.0]
[1673462176754,0.96,15.705,15.701,47.78]
[1673462176966,0.96,15.705,15.7,67.78]
[1673462177175,0.96,15.705,15.7,47.78]
[1673462177392,0.96,15.705,15.698,47.79]
[1673462177603,0.96,15.705,15.696,117.4163]
[1673462177812,0.96,15.704,15.696,117.4163]
[1673462178028,17.0,15.706,15.696,117.4163]
[1673462178447,17.0,15.706,15.695,47.8]
[1673462178448,39.14496728,15.705,15.695,47.8]
[1673462178662,17.96,15.704,15.693,20.0]
[1673462178992,18.46,15.7,15.694,47.8]
[1673462179196,20.0,15.699,15.693,20.0]
[1673462179513,0.96,15.698,15.692,47.8]
[1673462179705,17.96,15.698,15.689,47.81]
[1673462179917,17.96,15.698,15.688,228.8393]
[1673462179918,20.0,15.697,15.688,228.8393]
[1673462180127,17.0,15.696,15.688,228.8393]
[1673462180457,17.0,15.696,15.684,47.83]
[1673462180772,18.45,15.69,15.684,162.7045]
[1673462180985,18.45,15.69,15.685,20.0]
[1673462181176,17.0,15.696,15.685,20.0]
[1673462181812,0.96,15.695,15.685,20.0]
[1673462182771,0.96,15.695,15.685,67.83]
[1673462183714,0.96,15.695,15.685,47.83]
[1673462183907,0.96,15.695,15.684,114.8745]
[1673462184113,18.46,15.69,15.684,114.8745]
[1673462184339,18.46,15.69,15.685,20.0]
[1673462184549,17.0,15.696,15.684,114.8745]
[1673462184761,18.49,15.69,15.684,114.8745]
[1673462184972,18.49,15.69,15.685,47.83]
[1673462185287,18.49,15.69,15.681,20.0]
[1673462185288,3.571,15.695,15.681,47.84]
[1673462185497,17.0,15.689,15.681,47.84]
[1673462185716,20.0,15.688,15.681,47.84]
[1673462185905,17.96,15.687,15.681,47.84]
[1673462186118,17.96,15.687,15.68,156.883]
[1673462186534,17.96,15.687,15.681,20.0]
[1673462188428,18.45,15.69,15.681,20.0]
[1673462188747,20.0,15.689,15.683,20.0]
[1673462189166,20.0,15.689,15.684,47.83]
[1673462189578,20.0,15.689,15.68,129.043]
[1673462189796,20.0,15.689,15.68,109.043]
[1673462190330,17.96,15.688,15.68,109.043]
[1673462190555,20.0,15.687,15.68,109.043]
[1673462191283,20.0,15.687,15.68,156.883]
[1673462191467,20.0,15.687,15.68,109.043]
[1673462191682,17.0,15.686,15.68,109.043]
[1673462192021,0.96,15.685,15.68,109.043]
[1673462192745,0.96,15.685,15.681,47.84]
[1673462192953,0.96,15.685,15.68,156.883]
[1673462193591,0.96,15.685,15.676,47.85]
[1673462194315,0.96,15.685,15.674,47.86]
[1673462194316,24.152,15.685,15.674,47.86]
[1673462194523,18.5,15.68,15.674,47.86]
[1673462194853,37.0,15.679,15.673,47.86]
[1673462195779,0.96,15.678,15.673,47.86]
[1673462196423,0.96,15.678,15.672,113.2971]
[1673462198540,0.96,15.678,15.673,20.0]
[1673462198752,0.96,15.678,15.672,113.2971]
[1673462200203,92.45,15.68,15.672,113.2971]
[1673462200532,92.45,15.69,15.673,47.86]
[1673462200747,20.0,15.689,15.674,134.4749]
[1673462201058,20.0,15.689,15.675,47.86]
[1673462201483,92.51,15.69,15.676,20.0]
[1673462201671,92.51,15.69,15.677,47.85]
[1673462202213,92.51,15.69,15.678,20.0]
[1673462202411,17.0,15.689,15.679,47.84]
[1673462202622,20.0,15.688,15.679,47.84]
[1673462202831,17.0,15.687,15.679,47.84]
[1673462203462,0.96,15.686,15.679,47.84]
[1673462205141,20.0,15.688,15.679,47.84]
[1673462205352,20.0,15.689,15.68,20.0]
[1673462205565,20.0,15.689,15.681,47.84]
[1673462205775,20.0,15.689,15.682,20.0]
[1673462206416,0.96,15.688,15.682,20.0]
[1673462207374,20.0,15.689,15.682,20.0]
[1673462207802,2.785,15.699,15.682,20.0]
[1673462207993,22.785,15.699,15.683,164.7156]
[1673462208204,20.0,15.699,15.683,164.7156]
[1673462208425,20.0,15.699,15.684,20.0]
[1673462208634,20.0,15.699,15.686,20.0]
[1673462208870,20.0,15.699,15.687,47.82]
[1673462209249,20.0,15.699,15.688,20.0]
[1673462209458,17.0,15.698,15.688,129.2411]
[1673462209998,20.0,15.697,15.688,129.2411]
[1673462210210,20.0,15.699,15.689,47.81]
[1673462210532,23.378,15.699,15.688,109.2411]
[1673462211026,20.0,15.699,15.688,109.2411]
[1673462211237,17.96,15.698,15.688,109.2411]
[1673462211553,20.0,15.697,15.688,109.2411]
[1673462211762,17.0,15.696,15.688,109.2411]
[1673462211983,17.0,15.696,15.689,20.0]
[1673462213356,20.0,15.697,15.689,20.0]
[1673462213556,0.96,15.696,15.689,67.81]
[1673462221975,20.0,15.699,15.689,67.81]
[1673462222711,20.0,15.699,15.688,109.2411]
[1673462223115,23.638,15.699,15.688,109.2411]
[1673462223427,17.96,15.698,15.688,109.2411]
[1673462223637,20.0,15.697,15.688,109.2411]
[1673462223878,17.96,15.696,15.687,47.82]
[1673462224058,20.0,15.695,15.685,47.83]
[1673462224268,17.0,15.694,15.684,47.83]
[1673462224475,18.5,15.69,15.684,47.83]
[1673462224688,20.0,15.689,15.684,47.83]
[1673462224903,0.96,15.688,15.684,47.83]
[1673462225843,0.96,15.688,15.685,20.0]
[1673462227856,17.0,15.694,15.685,20.0]
[1673462228071,120.02,15.7,15.687,20.0]
[1673462228287,20.0,15.699,15.687,20.0]
[1673462228469,20.0,15.699,15.688,47.82]
[1673462229019,3.42,15.702,15.688,47.82]
[1673462229020,23.42,15.702,15.689,20.0]
[1673462229210,19.14496728,15.698,15.684,67.83]
[1673462229422,23.33,15.697,15.68,176.3848]
[1673462229624,23.33,15.697,15.68,128.5448]
[1673462229838,19.14496728,15.696,15.681,47.84]
[1673462230056,41.601,15.695,15.681,47.84]
[1673462230366,23.87,15.69,15.681,47.84]
[1673462230576,17.0,15.689,15.681,47.84]
[1673462230786,20.0,15.689,15.684,20.0]
[1673462231006,0.96,15.688,15.684,20.0]
[1673462231744,0.96,15.688,15.682,20.0]
[1673462232267,37.0,15.689,15.684,20.0]
[1673462232682,37.0,15.689,15.681,47.84]
[1673462234365,0.96,15.688,15.681,47.84]
[1673462234791,0.96,15.688,15.684,20.0]
[1673462235530,3.035,15.697,15.685,47.83]
[1673462235733,120.15,15.7,15.685,47.83]
[1673462235946,20.0,15.699,15.686,20.0]
[1673462236269,20.0,15.699,15.687,47.82]
[1673462236452,20.0,15.699,15.688,20.0]
[1673462236659,20.0,15.699,15.688,139.3704]
[1673462236880,24.03,15.7,15.688,139.3704]
[1673462237096,20.0,15.699,15.689,47.81]
[1673462237734,23.0,15.705,15.689,47.81]
[1673462237944,24.03,15.7,15.69,20.0]
[1673462238159,20.0,15.699,15.691,47.81]
[1673462239126,20.0,15.705,15.691,47.81]
[1673462239444,23.84,15.7,15.689,47.81]
[1673462239748,37.96,15.699,15.689,47.81]
[1673462239965,40.833,15.699,15.688,119.3704]
[1673462240181,37.96,15.699,15.688,119.3704]
[1673462240364,40.89,15.699,15.684,47.83]
[1673462240575,60.03496728,15.699,15.684,47.83]
[1673462241012,60.03496728,15.699,15.684,67.83]
[1673462241620,24.03,15.69,15.684,47.83]
[1673462241852,17.0,15.689,15.684,47.83]
[1673462242063,20.0,15.688,15.681,47.84]
[1673462242270,17.0,15.687,15.681,47.84]
[1673462243627,20.0,15.688,15.681,47.84]
[1673462243835,20.0,15.689,15.681,47.84]
[1673462244153,23.87,15.69,15.681,47.84]
[1673462244372,37.96,15.689,15.681,47.84]
[1673462244691,20.0,15.688,15.681,47.84]
[1673462244897,20.0,15.688,15.681,67.84]
[1673462245633,20.0,15.688,15.682,20.0]
[1673462246049,0.96,15.687,15.683,47.83]
[1673462246471,20.0,15.689,15.683,47.83]
[1673462246883,23.84,15.69,15.683,47.83]
[1673462247210,399.12390308,15.709,15.683,47.83]
[1673462247211,20.0,15.689,15.683,47.83]
[1673462247423,38.77554633,15.699,15.684,20.0]
[1673462247733,38.77554633,15.699,15.685,47.83]
[1673462247734,24.03,15.69,15.685,47.83]
[1673462247931,2.089,15.698,15.685,47.83]
[1673462248344,19.14496728,15.697,15.685,47.83]
[1673462248558,17.0,15.696,15.681,20.0]
[1673462248769,2.692,15.695,15.681,67.84]
[1673462248980,24.03,15.69,15.681,67.84]
[1673462249190,37.0,15.689,15.681,67.84]
[1673462249419,0.96,15.688,15.681,67.84]
[1673462251194,0.96,15.688,15.681,47.84]
[1673462251403,0.96,15.688,15.68,47.84]
[1673462251619,19.14496728,15.687,15.676,47.85]
[1673462251836,20.0,15.685,15.673,47.86]
[1673462252150,1.94692631,15.679,15.673,47.86]
[1673462252341,37.0,15.679,15.673,47.86]
[1673462252763,17.0,15.679,15.674,20.0]
[1673462252987,1.6063045,15.677,15.674,20.0]
[1673462253201,20.0,15.678,15.674,20.0]
[1673462253406,20.0,15.678,15.673,47.86]
[1673462253602,20.0,15.679,15.673,47.86]
[1673462253813,1.61081429,15.679,15.674,20.0]
[1673462254043,20.0,15.679,15.674,20.0]
[1673462254448,17.0,15.678,15.674,20.0]
[1673462254668,20.0,15.677,15.674,20.0]
[1673462255514,20.0,15.679,15.674,20.0]
[1673462255721,23.84,15.68,15.674,20.0]
[1673462255916,1.53797882,15.686,15.674,20.0]
[1673462256130,1.53797882,15.686,15.675,47.86]
[1673462256343,20.0,15.687,15.675,47.86]
[1673462256559,20.0,15.689,15.675,47.86]
[1673462256769,20.0,15.689,15.677,20.0]
[1673462256992,20.0,15.689,15.678,47.85]
[1673462257179,20.0,15.689,15.679,20.0]
[1673462257509,120.15,15.69,15.679,20.0]
[1673462257713,120.29,15.69,15.679,20.0]
[1673462258039,120.29,15.69,15.681,20.0]
[1673462258040,120.12,15.69,15.681,20.0]
[1673462258253,120.02,15.69,15.682,47.83]
[1673462258438,120.14,15.69,15.68,47.84]
[1673462258871,37.96,15.689,15.68,47.84]
[1673462259192,37.96,15.689,15.679,20.0]
[1673462259381,37.96,15.689,15.68,47.84]
[1673462259591,37.96,15.689,15.679,20.0]
[1673462260015,37.96,15.689,15.678,47.85]
[1673462260440,37.96,15.689,15.677,20.0]
[1673462260646,37.96,15.689,15.677,67.85]
[1673462261488,20.0,15.689,15.677,67.85]
[1673462261704,140.02,15.69,15.677,67.85]
[1673462261915,140.15,15.69,15.677,67.85]
[1673462263174,17.96,15.689,15.677,67.85]
[1673462263503,20.0,15.688,15.677,67.85]
[1673462263697,17.0,15.687,15.677,67.85]
[1673462263918,0.96,15.686,15.677,67.85]
[1673462264343,0.96,15.686,15.676,119.2069]
[1673462264966,19.14496728,15.685,15.674,47.86]
[1673462265184,37.0,15.684,15.668,20.0]
[1673462265379,23.84,15.68,15.669,47.87]
[1673462265703,20.0,15.679,15.673,20.0]
[1673462265908,0.96,15.678,15.673,20.0]
[1673462266445,0.96,15.678,15.673,67.86]
[1673462268631,17.0,15.684,15.673,67.86]
[1673462268852,23.84,15.68,15.673,179.0068]
[1673462269069,17.0,15.684,15.673,179.0068]
[1673462271171,19.14496728,15.689,15.673,179.0068]
[1673462271367,20.0,15.688,15.675,20.0]
[1673462271574,20.0,15.688,15.676,47.85]
[1673462272006,20.0,15.691,15.676,47.85]
[1673462272429,17.0,15.69,15.676,47.85]
[1673462272659,20.0,15.689,15.677,20.0]
[1673462272837,17.96,15.688,15.678,47.85]
[1673462273052,20.0,15.687,15.679,20.0]
[1673462273257,20.0,15.687,15.68,47.84]
[1673462273468,20.0,15.687,15.681,20.0]
[1673462273678,20.0,15.691,15.681,20.0]
[1673462273896,21.626,15.693,15.681,20.0]
[1673462274097,21.626,15.693,15.682,47.83]
[1673462274324,21.626,15.693,15.681,67.84]
[1673462275072,17.0,15.692,15.681,67.84]
[1673462275281,20.0,15.691,15.681,67.84]
[1673462275467,17.0,15.69,15.681,67.84]
[1673462275810,20.0,15.689,15.681,67.84]
[1673462276327,0.96,15.688,15.681,67.84]
[1673462277168,20.0,15.689,15.681,67.84]
[1673462277588,1.626,15.693,15.681,67.84]
[1673462278319,0.96,15.692,15.681,67.84]
[1673462278539,18.5,15.69,15.681,67.84]
[1673462278763,20.0,15.689,15.681,67.84]
[1673462279496,1.92,15.688,15.681,67.84]
[1673462280320,18.92,15.688,15.681,67.84]
[1673462280650,20.0,15.687,15.681,67.84]
[1673462280860,0.96,15.686,15.681,67.84]
[1673462281188,20.0,15.687,15.681,67.84]
[1673462281366,20.0,15.689,15.681,67.84]
[1673462281577,1.92,15.688,15.681,67.84]
[1673462282424,0.96,15.688,15.681,67.84]
[1673462283263,20.0,15.689,15.681,67.84]
[1673462283475,0.96,15.688,15.681,67.84]
[1673462283791,20.0,15.689,15.681,67.84]
[1673462284115,37.10496728,15.688,15.681,47.84]
[1673462284331,20.96,15.687,15.681,47.84]
[1673462284538,20.96,15.687,15.68,162.3153]
[1673462284954,17.0,15.686,15.68,114.4753]
[1673462285355,0.96,15.685,15.68,114.4753]
[1673462285793,0.96,15.684,15.68,114.4753]
[1673462286009,0.96,15.683,15.677,47.85]
[1673462286322,0.96,15.683,15.676,67.85]
[1673462286517,17.96,15.683,15.676,20.0]
[1673462286737,17.96,15.683,15.676,67.85]
[1673462287049,17.96,15.683,15.673,159.0068]
[1673462287269,18.5,15.68,15.673,159.0068]
[1673462287470,37.96,15.679,15.673,111.1468]
[1673462287788,0.96,15.678,15.673,111.1468]
[1673462288314,0.96,15.677,15.673,111.1468]
[1673462289055,1.6424449,15.677,15.667,47.88]
[1673462289240,38.28993456,15.677,15.667,47.88]
[1673462289455,18.92,15.676,15.667,47.88]
[1673462292394,0.96,15.676,15.667,47.88]
[1673462292601,1.58929953,15.678,15.669,47.87]
[1673462292816,1.58929953,15.678,15.667,47.88]
[1673462293880,1.92,15.677,15.667,47.88]
[1673462294203,23.50929953,15.677,15.667,47.88]
[1673462294392,17.0,15.676,15.667,47.88]
[1673462294604,17.0,15.676,15.666,47.88]
[1673462294827,1.92,15.675,15.666,47.88]
[1673462295025,1.92,15.675,15.667,20.0]
[1673462296082,1.92,15.675,15.668,47.88]
[1673462296294,1.92,15.675,15.667,20.0]
[1673462296502,1.92,15.675,15.666,47.88]
[1673462296725,1.92,15.675,15.667,20.0]
[1673462297035,1.92,15.675,15.662,47.9]
[1673462297036,21.92,15.675,15.662,47.9]
[1673462297349,18.52,15.67,15.661,20.0]
[1673462297541,0.96,15.675,15.662,47.9]
[1673462297747,0.96,15.674,15.662,47.9]
[1673462298301,18.52,15.67,15.661,20.0]
[1673462298494,37.96,15.669,15.662,47.9]
[1673462298820,37.96,15.669,15.663,20.0]
[1673462299030,18.7,15.68,15.663,20.0]
[1673462299235,20.0,15.679,15.665,20.0]
[1673462299453,92.73,15.68,15.666,47.88]
[1673462299648,92.78,15.68,15.666,47.88]
[1673462299851,92.78,15.68,15.667,20.0]
[1673462300064,92.78,15.68,15.668,47.88]
[1673462300065,18.7,15.68,15.668,47.88]
[1673462300280,18.7,15.68,15.669,20.0]
[1673462300926,20.0,15.679,15.67,47.87]
[1673462301327,20.0,15.679,15.671,20.0]
[1673462301542,20.0,15.679,15.672,47.87]
[1673462302193,18.92,15.678,15.672,47.87]
[1673462302510,20.0,15.677,15.672,47.87]
[1673462302694,20.0,15.677,15.67,47.87]
[1673462302910,20.0,15.677,15.671,20.0]
[1673462303136,20.0,15.679,15.672,47.87]
[1673462303347,20.0,15.679,15.673,20.0]
[1673462303875,20.0,15.679,15.672,47.87]
[1673462304067,20.0,15.679,15.67,47.87]
[1673462304273,0.96,15.678,15.67,47.87]
[1673462304489,18.92,15.678,15.669,20.0]
[1673462304707,20.0,15.677,15.669,20.0]
[1673462304916,17.96,15.676,15.669,20.0]
[1673462305118,0.96,15.675,15.669,20.0]
[1673462305329,0.96,15.674,15.669,20.0]
[1673462306813,20.0,15.677,15.669,20.0]
[1673462307004,18.7,15.68,15.669,20.0]
[1673462307005,20.0,15.679,15.671,20.0]
[1673462308062,20.0,15.679,15.669,20.0]
[1673462309420,0.96,15.678,15.67,47.87]
[1673462310065,0.96,15.678,15.671,20.0]
[1673462310285,0.96,15.678,15.672,47.87]
[1673462310599,20.0,15.679,15.672,47.87]
[1673462310792,20.0,15.679,15.673,20.0]
[1673462312269,0.96,15.678,15.673,20.0]
[1673462312790,0.96,15.678,15.672,47.87]
[1673462313002,0.96,15.677,15.671,20.0]
[1673462313225,20.0,15.679,15.671,20.0]
[1673462313413,0.96,15.678,15.672,47.87]
[1673462313854,17.96,15.678,15.669,67.87]
[1673462314048,20.0,15.677,15.669,67.87]
[1673462314259,17.0,15.676,15.669,20.0]
[1673462314484,17.96,15.676,15.666,67.88]
[1673462314795,0.96,15.675,15.668,20.0]
[1673462314992,0.96,15.675,15.668,67.88]
[1673462317618,20.0,15.679,15.668,67.88]
[1673462317828,18.92,15.678,15.668,67.88]
[1673462318043,20.0,15.677,15.668,67.88]
[1673462318254,17.0,15.676,15.668,20.0]
[1673462318468,0.96,15.675,15.668,67.88]
[1673462319096,0.96,15.674,15.668,67.88]
[1673462319305,0.96,15.673,15.668,67.88]
[1673462320801,0.96,15.672,15.668,67.88]
[1673462321097,0.96,15.672,15.665,47.89]
[1673462321317,18.52,15.67,15.662,47.9]
[1673462321504,17.0,15.669,15.662,47.9]
[1673462321713,20.0,15.668,15.662,47.9]
[1673462321923,1.92,15.667,15.662,47.9]
[1673462323819,1.92,15.667,15.661,20.0]
[1673462324239,21.92,15.667,15.662,47.9]
[1673462324449,21.92,15.667,15.66,47.9]
[1673462324660,17.0,15.666,15.66,47.9]
[1673462324885,1.92,15.665,15.66,47.9]
[1673462325392,1.92,15.665,15.659,20.0]
[1673462325601,1.92,15.665,15.658,163.4415]
[1673462326454,1.92,15.665,15.659,20.0]
[1673462327084,1.92,15.665,15.66,47.9]
[1673462327296,1.92,15.665,15.658,115.5315]
[1673462327707,1.92,15.665,15.659,20.0]
[1673462328342,1.92,15.665,15.659,47.91]
[1673462328553,1.92,15.665,15.658,163.4415]
[1673462329018,1.92,15.665,15.658,47.91]
[1673462329200,1.92,15.665,15.654,47.92]
[1673462329414,1.92,15.665,15.64,138.2426]